bitfinex/quotes_ETHUSD_20250114
["timestamp","ask_amount","ask_price","bid_price","bid_amount"]
[1736877242145,0.7702,3215.7,3215.0,1.30003268]
[1736877243228,0.58887544,3215.6,3214.4,6.72424472]
[1736877243463,0.7912,3215.3,3214.7,6.05747472]
[1736877243755,0.7912,3215.3,3214.7,2.94684472]
[1736877244127,0.7912,3216.0,3215.0,2.94684472]
[1736877244328,0.55,3215.7,3215.0,6.05723472]
[1736877245529,0.55,3215.7,3215.0,2.94684472]
[1736877246559,0.55,3215.7,3215.1,3.11029]
[1736877247218,3.30255,3215.9,3214.4,4.38747717]
[1736877247219,0.55,3215.5,3214.6,3.11073]
[1736877247423,0.83007905,3215.4,3214.6,3.11073]
[1736877247664,0.7912,3215.0,3214.3,2.94684472]
[1736877247864,0.7912,3215.0,3214.3,3.61322334]
[1736877248161,0.7912,3215.0,3214.5,3.11087]
[1736877248347,0.7912,3215.0,3214.6,6.05763472]
[1736877248550,0.7912,3215.8,3214.6,2.94684472]
[1736877248860,0.7912,3215.6,3214.6,2.94684472]
[1736877249059,1.3412,3215.4,3214.6,6.05758472]
[1736877249564,0.7912,3215.2,3214.4,3.0]
[1736877249761,0.7912,3215.2,3214.3,4.39062334]
[1736877249936,0.7912,3215.2,3214.4,3.0]
[1736877250138,0.7912,3215.2,3214.6,2.94684472]
[1736877250550,3.10949,3216.0,3215.0,2.94684472]
[1736877250881,0.25,3217.1,3215.0,2.94684472]
[1736877250882,0.7912,3216.4,3215.6,3.10981]
[1736877251032,0.7912,3216.4,3215.7,3.10967]
[1736877251664,0.7912,3216.2,3215.7,3.10972]
[1736877251966,0.7912,3216.2,3215.4,2.94684472]
[1736877252134,0.7912,3216.2,3215.6,3.10982]
[1736877252776,0.7912,3216.2,3215.4,6.05679472]
[1736877252945,0.83006882,3216.2,3215.4,6.72562349]
[1736877253265,0.7912,3216.2,3215.4,3.77877877]
[1736877253459,0.7912,3216.2,3215.4,3.10995]
[1736877253774,0.7912,3216.2,3215.5,3.10991]
[1736877254192,0.55,3215.9,3215.1,0.29468447]
[1736877254484,0.7912,3215.8,3215.1,3.40498447]
[1736877255034,0.7912,3215.8,3215.1,0.29468447]
[1736877255240,0.7912,3215.8,3215.2,3.43965845]
[1736877255793,0.7912,3215.8,3215.2,3.27631317]
[1736877256570,0.193,3216.2,3215.2,3.27631317]
[1736877256571,0.823,3216.1,3215.6,3.10983]
[1736877257138,0.823,3216.1,3215.2,3.27631317]
[1736877257389,0.823,3216.1,3215.4,3.11]
[1736877257683,0.823,3216.1,3215.5,0.311]
[1736877258972,0.823,3216.1,3215.5,3.42092]
[1736877259779,0.823,3216.1,3215.6,3.10983]
[1736877259979,0.823,3216.1,3215.5,0.311]
[1736877260199,0.823,3216.1,3215.8,2.94684472]
[1736877260358,0.823,3216.4,3216.1,3.10928]
[1736877260557,0.823,3216.4,3216.2,2.94684472]
[1736877261270,0.823,3216.4,3216.1,3.10928]
[1736877261461,0.823,3216.4,3215.9,6.05633472]
[1736877261661,0.823,3216.4,3215.9,7.05486619]
[1736877262587,0.823,3216.4,3216.0,3.10942]
[1736877263861,0.823,3216.4,3215.9,3.94537619]
[1736877264061,0.823,3216.4,3215.9,2.94684472]
[1736877264371,0.823,3216.7,3216.2,2.94684472]
[1736877264848,0.823,3216.7,3215.7,1.44334225]
[1736877264849,0.823,3216.7,3215.9,2.94684472]
[1736877265050,0.823,3216.7,3216.1,3.10932]
[1736877265879,0.823,3216.7,3215.9,6.05633472]
[1736877266084,0.823,3216.7,3216.2,2.94684472]
[1736877266380,3.30132,3217.2,3216.5,2.94684472]
[1736877266381,0.823,3217.1,3216.5,2.94684472]
[1736877267062,0.823,3217.1,3216.2,6.87533472]
[1736877267992,0.823,3217.1,3216.3,3.10914]
[1736877268753,3.93139,3217.1,3216.3,3.10914]
[1736877269290,3.93139,3217.1,3215.9,4.1704567]
[1736877269291,0.823,3216.9,3215.9,4.00778142]
[1736877269470,0.823,3216.8,3215.9,7.11723142]
[1736877270081,0.823,3216.8,3216.2,2.94684472]
[1736877270494,0.823,3216.8,3216.5,6.05580472]
[1736877273072,0.823,3216.8,3216.3,3.10912]
[1736877273692,0.7731,3216.6,3215.8,3.10958]
[1736877273899,0.7731,3216.4,3215.6,3.1098]
[1736877274059,0.7731,3216.4,3215.4,3.76924472]
[1736877274060,0.7731,3216.2,3215.4,6.05682472]
[1736877274258,0.55,3216.1,3215.4,2.94684472]
[1736877274496,0.7731,3216.0,3215.2,0.32946845]
[1736877275804,0.55,3215.9,3215.2,0.32946845]
[1736877276011,0.7731,3215.8,3215.1,6.35175919]
[1736877276467,0.7731,3215.8,3215.2,3.11021]
[1736877279318,0.7731,3215.8,3215.3,3.11012]
[1736877282921,0.7731,3215.8,3215.1,3.24152919]
[1736877283222,0.7731,3215.8,3215.2,3.49741797]
[1736877283422,0.55,3215.9,3215.0,0.63065054]
[1736877283423,0.7731,3215.6,3215.0,0.63065054]
[1736877283589,0.7731,3215.6,3214.8,5.94684472]
[1736877283950,0.7731,3215.4,3214.5,3.76924472]
[1736877284274,0.7731,3215.4,3214.6,3.0]
[1736877284470,0.7731,3215.4,3214.7,0.67692447]
[1736877285432,0.7731,3215.2,3214.6,0.28826551]
[1736877285910,0.7731,3215.2,3214.7,3.1107]
[1736877286776,0.7731,3215.2,3214.5,2.94684472]
[1736877287079,0.7731,3215.2,3215.1,2.94684472]
[1736877287372,0.8289,3215.5,3215.3,3.11007]
[1736877287875,0.55,3215.4,3215.3,3.11007]
[1736877288330,0.55,3215.4,3215.1,6.05715472]
[1736877288528,0.55,3215.4,3214.9,3.11044]
[1736877289630,0.55,3215.4,3215.0,3.11041]
[1736877290403,0.55,3215.4,3214.5,3.74824472]
[1736877290687,0.55,3215.0,3214.5,3.11088]
[1736877290894,0.55,3215.0,3214.3,3.11105]
[1736877291189,0.55,3215.0,3214.3,0.60578947]
[1736877291376,0.55,3215.0,3214.1,2.94684472]
[1736877291779,0.55,3214.8,3214.1,2.94684472]
[1736877295251,0.55,3214.8,3214.7,2.94684472]
[1736877295459,0.8289,3215.2,3214.7,2.94684472]
[1736877295659,3.93913,3215.2,3214.7,2.94684472]
[1736877295968,0.55,3215.1,3214.7,2.94684472]
[1736877296164,3.11042,3215.0,3214.4,2.94684472]
[1736877296365,3.11062,3214.8,3214.4,2.94684472]
[1736877296566,1.3789,3214.7,3214.1,2.94684472]
[1736877297502,3.1108,3214.6,3213.9,1.42486726]
[1736877297739,3.11102,3214.4,3213.9,0.62346726]
[1736877297938,1.3789,3214.3,3213.8,2.94684472]
[1736877298091,1.3789,3214.3,3213.9,0.29468447]
[1736877303244,0.55,3214.2,3213.4,0.8013]
[1736877303543,0.55,3214.2,3213.6,2.94684472]
[1736877304425,0.55,3214.2,3213.5,3.11178]
[1736877304426,0.193,3214.8,3213.9,2.94684472]
[1736877304608,0.7945,3214.9,3214.2,2.94684472]
[1736877304814,0.7945,3214.9,3214.3,0.29468447]
[1736877305234,0.7945,3214.9,3214.2,2.94684472]
[1736877305430,0.7945,3214.6,3213.7,6.05848472]
[1736877305616,0.55,3214.5,3213.7,6.05848472]
[1736877305812,0.55,3214.5,3214.0,2.94684472]
[1736877306125,0.55,3214.5,3214.0,6.05820472]
[1736877306341,0.55,3214.5,3214.1,0.60582047]
[1736877307341,0.55,3214.5,3214.0,2.94684472]
[1736877307495,0.55,3214.5,3213.8,3.1115]
[1736877308430,0.55,3214.3,3213.5,0.62233886]
[1736877308634,0.55,3214.3,3213.5,3.73417886]
[1736877308880,0.1325,3214.4,3213.7,2.94684472]
[1736877309047,3.2435,3214.4,3213.7,2.94684472]
[1736877309200,0.1325,3214.4,3213.7,2.94684472]
[1736877309396,0.1325,3214.4,3213.7,3.61493908]
[1736877310300,0.1325,3214.4,3213.5,0.62233886]
[1736877310646,0.193,3214.3,3213.1,6.05904472]
[1736877310943,3.1116,3213.8,3213.0,0.61619026]
[1736877311157,0.03889938,3213.7,3213.0,0.61619026]
[1736877311438,0.03889938,3213.7,3212.5,2.94684472]
[1736877311439,3.11197,3213.4,3212.5,2.94684472]
[1736877311596,3.11197,3213.4,3212.8,0.63177581]
[1736877311795,3.11197,3213.4,3212.1,6.98162074]
[1736877311796,0.55,3213.1,3212.2,6.05993472]
[1736877311996,3.66228,3213.1,3212.2,2.94684472]
[1736877312247,3.66228,3213.1,3212.5,0.61182631]
[1736877312401,0.55,3213.1,3212.5,0.61182631]
[1736877312756,0.55,3213.1,3212.3,0.29468447]
[1736877313047,0.7945,3213.2,3212.6,3.11271]
[1736877313531,0.7945,3213.2,3212.5,3.71964472]
[1736877313731,0.7945,3213.2,3212.6,0.68325447]
[1736877314118,0.7945,3213.2,3212.3,0.29468447]
[1736877314119,0.55,3213.0,3212.3,0.29468447]
[1736877314319,0.55,3213.0,3212.2,0.62541691]
[1736877314630,3.11236,3213.0,3212.0,3.71964472]
[1736877314835,3.11236,3213.0,3212.1,0.62192574]
[1736877315748,0.58890812,3213.1,3212.1,0.62192574]
[1736877315749,0.55,3213.1,3212.1,3.73513574]
[1736877316047,0.55,3213.1,3212.1,0.62192574]
[1736877316432,3.66227,3213.1,3212.2,0.43415705]
[1736877316583,3.66227,3213.1,3212.1,0.62192574]
[1736877317088,1.3791,3212.8,3212.1,0.62192574]
[1736877317242,0.8291,3212.5,3211.7,0.8168]
[1736877317448,0.8291,3212.5,3211.7,3.9304]
[1736877317855,6.1119,3213.5,3211.9,2.94684472]
[1736877317856,0.8291,3212.9,3211.9,2.94684472]
[1736877318195,0.8291,3212.9,3212.0,0.29468447]
[1736877318394,0.8291,3212.9,3211.7,0.8168]
[1736877318395,3.66259,3212.8,3211.7,0.8168]
[1736877318694,3.66259,3212.8,3211.8,3.1135]
[1736877319287,0.55,3212.6,3211.6,2.94684472]
[1736877319459,0.55,3212.2,3211.6,2.94684472]
[1736877319654,0.55,3212.2,3211.6,3.65106549]
[1736877320295,0.55,3212.2,3211.3,6.06079472]
[1736877320441,0.55,3212.2,3211.3,2.94684472]
[1736877320641,0.8291,3212.3,3211.2,0.62400598]
[1736877320642,0.55,3212.0,3211.2,0.62400598]
[1736877321488,0.55,3212.2,3211.2,3.73808598]
[1736877321689,0.55,3212.0,3211.2,3.11408]
[1736877321984,3.66334,3212.0,3210.9,6.06116472]
[1736877322186,0.55,3211.8,3210.9,6.06116472]
[1736877322390,0.55,3211.8,3210.9,6.67026441]
[1736877322688,0.55,3211.8,3211.1,3.11419]
[1736877324370,0.55,3211.8,3211.1,3.78120344]
[1736877324695,0.8291,3211.9,3211.1,3.11419]
[1736877326947,0.8291,3211.9,3211.2,3.11409]
[1736877327187,0.8291,3211.9,3211.5,2.94684472]
[1736877328180,0.8291,3211.9,3211.5,6.06061472]
[1736877328557,0.8291,3211.9,3211.5,3.11377]
[1736877329392,0.8291,3211.9,3211.6,3.11369]
[1736877329896,0.8291,3211.9,3211.5,3.1138]
[1736877332185,0.8291,3211.9,3211.5,3.71986447]
[1736877332525,0.8291,3211.9,3211.6,2.94684472]
[1736877332942,0.8291,3211.9,3211.5,3.71986447]
[1736877333084,0.8291,3211.9,3211.5,0.60606447]
[1736877333423,0.8291,3211.9,3211.3,2.94684472]
[1736877333586,0.8291,3211.9,3211.0,2.94684472]
[1736877334015,0.8291,3211.9,3211.3,6.06083472]
[1736877334194,0.8291,3211.9,3211.4,3.11386]
[1736877334705,0.8253556,3211.9,3211.3,2.94684472]
[1736877334895,0.8253556,3211.9,3211.4,0.29468447]
[1736877335091,0.193,3212.3,3211.7,3.11361]
[1736877337148,0.193,3212.3,3211.8,3.1135]
[1736877337805,0.7525,3212.2,3211.8,3.1135]
[1736877338375,0.7525,3212.2,3211.6,6.06050472]
[1736877338507,0.7525,3212.2,3211.6,7.00741064]
[1736877339047,0.7525,3212.2,3211.7,3.11361]
[1736877341648,0.7525,3212.0,3210.9,3.76814472]
[1736877341809,0.7525,3212.0,3211.4,3.11388]
[1736877342747,0.7525,3212.0,3211.5,3.11375]
[1736877342923,0.7525,3212.0,3211.6,3.1137]
[1736877343120,0.7525,3212.0,3211.7,3.11356]
[1736877343519,0.7525,3212.0,3211.6,3.11368]
[1736877346656,0.8181,3211.8,3211.0,0.7671]
[1736877346808,0.8181,3212.2,3211.4,2.94684472]
[1736877347008,0.8181,3212.2,3211.6,3.11364]
[1736877347213,0.8181,3212.2,3211.6,3.88074]
[1736877348517,0.8181,3212.2,3211.7,0.28994703]
[1736877350049,0.8181,3212.2,3211.6,3.88074]
[1736877350253,0.8181,3212.2,3211.7,0.41754245]
[1736877352236,0.8181,3212.2,3211.6,3.11364]
[1736877353365,0.8181,3212.2,3211.7,2.94684472]
[1736877353550,0.193,3213.1,3212.5,3.11281]
[1736877353856,0.8181,3213.2,3212.7,2.94684472]
[1736877354364,0.8181,3213.6,3213.0,2.94684472]
[1736877354563,5.94971172,3214.2,3213.2,3.11213]
[1736877354564,0.8181,3213.9,3213.2,3.11213]
[1736877354762,0.8181,3213.9,3213.1,0.29468447]
[1736877355261,0.8181,3213.9,3213.0,2.94684472]
[1736877355446,3.11165,3213.8,3213.0,2.94684472]
[1736877355627,0.8181,3213.7,3213.0,2.94684472]
[1736877355823,0.55,3213.4,3212.7,3.8275263]
[1736877356024,3.66197,3213.4,3212.6,3.21418208]
[1736877356258,3.66197,3213.4,3212.4,6.05968472]
[1736877356570,3.66197,3213.4,3212.5,4.34021668]
[1736877356939,0.8181,3213.3,3212.5,3.11283]
[1736877357861,3.66197,3213.4,3212.3,3.11298]
[1736877357862,0.8181,3213.1,3212.3,3.11298]
[1736877358063,0.55,3213.0,3212.3,3.11298]
[1736877358773,0.55,3212.8,3212.1,3.21418208]
[1736877359154,0.55,3212.8,3212.0,3.11326]
[1736877360174,0.55,3212.8,3212.2,3.11311]
[1736877360379,0.8181,3212.9,3212.1,2.94684472]
[1736877360742,0.8181,3212.9,3212.3,0.7924]
[1736877360975,0.8181,3212.9,3212.4,3.11292]
[1736877361550,0.8181,3212.9,3212.0,0.3125236]
[1736877361755,0.55,3212.8,3212.0,3.11327]
[1736877362063,0.55,3212.6,3211.8,3.21418208]
[1736877362266,0.55,3212.4,3211.8,3.21418208]
[1736877362779,0.55,3212.4,3211.7,3.1136]
[1736877362981,0.55,3212.4,3211.5,3.24152919]
[1736877363283,0.55,3212.4,3211.8,3.11349]
[1736877364159,0.8112,3212.5,3211.9,3.11338]
[1736877364882,0.8112,3212.5,3211.9,3.90579]
[1736877365080,0.8112,3212.5,3211.8,2.94684472]
[1736877365286,0.55,3212.4,3211.5,2.94684472]
[1736877365456,0.8112,3212.3,3211.6,3.11369]
[1736877365644,0.193,3212.2,3211.6,3.11369]
[1736877366390,0.8112,3212.3,3211.8,2.94684472]
[1736877366619,0.8112,3212.6,3212.2,3.11313]
[1736877367144,0.8112,3212.6,3212.3,3.113]
[1736877368103,0.8112,3212.6,3212.1,6.06001472]
[1736877368393,0.8112,3212.9,3212.1,3.11317]
[1736877368592,0.8112,3212.7,3212.0,3.11325]
[1736877368792,0.8112,3212.7,3212.1,3.1132]
[1736877368995,0.8112,3212.7,3211.9,3.11337]
[1736877369159,0.58891211,3212.6,3211.7,9.2746268]
[1736877369500,0.8112,3212.7,3212.0,2.94684472]
[1736877369702,0.8112,3213.0,3212.6,3.1127]
[1736877369913,0.03890866,3213.8,3212.3,2.94684472]
[1736877369914,0.8112,3213.3,3212.3,2.94684472]
[1736877370050,0.8112,3213.3,3212.8,3.11254]
[1736877370603,0.8112,3213.3,3212.6,3.11272]
[1736877370755,0.8112,3213.3,3212.5,3.11282]
[1736877371092,0.8112,3213.3,3212.7,3.11257]
[1736877373015,0.8112,3213.1,3212.2,3.74308693]
[1736877373209,0.193,3213.7,3212.1,6.1610268]
[1736877373210,0.8112,3212.9,3212.1,6.1610268]
[1736877373416,0.8112,3212.9,3212.3,3.113]
[1736877373815,0.8112,3212.9,3212.1,2.94684472]
[1736877374031,0.8112,3212.9,3211.8,7.00658208]
[1736877374032,0.8112,3212.9,3211.9,3.21418208]
[1736877374334,0.8112,3212.8,3212.1,3.11321]
[1736877374488,0.8112,3212.8,3212.2,3.11312]
[1736877374683,0.8112,3212.8,3212.1,2.94684472]
[1736877374900,0.8112,3212.8,3212.1,6.05998472]
[1736877375102,0.8112,3212.8,3212.1,6.66598319]
[1736877376127,0.8112,3212.8,3211.8,6.73924472]
[1736877376427,3.92375,3212.8,3212.0,3.11329]
[1736877376731,3.11265,3212.7,3211.8,6.85271472]
[1736877377036,0.79051104,3212.6,3211.8,6.06031472]
[1736877377340,0.7516,3212.6,3211.8,6.06031472]
[1736877378002,0.58891211,3212.5,3211.6,3.11365]
[1736877378331,0.7516,3212.1,3211.5,3.21418208]
[1736877378837,0.7516,3212.1,3211.4,3.11382]
[1736877379042,0.7516,3211.9,3211.3,2.94684472]
[1736877379340,0.7516,3211.9,3211.2,6.32825208]
[1736877379495,0.7516,3211.9,3211.3,3.11398]
[1736877379690,0.7516,3211.9,3211.4,3.1139]
[1736877380094,0.7516,3211.9,3211.3,2.94684472]
[1736877380701,0.55,3211.8,3211.0,9.2752768]
[1736877380928,0.7516,3211.5,3210.9,3.21418208]
[1736877381138,3.66429,3211.0,3210.9,3.21418208]
[1736877381425,7.41589,3211.0,3210.9,3.21418208]
[1736877381801,0.55,3210.9,3210.8,0.1]
[1736877382005,3.66439,3210.9,3210.8,0.1]
[1736877382202,4.41599,3210.9,3210.8,0.1]
[1736877382630,4.4549289,3210.9,3210.8,0.1]
[1736877383330,4.41599,3210.9,3210.8,0.1]
[1736877384628,4.60899,3210.9,3210.8,0.1]
[1736877384933,7.60899,3210.9,3210.8,0.1]
[1736877390109,4.3016,3210.9,3210.8,0.1]
[1736877390299,4.4946,3210.9,3210.8,0.1]
[1736877391680,1.4946,3210.9,3210.8,0.1]
[1736877393140,1.3016,3210.9,3210.8,0.1]
[1736877393337,1.4946,3210.9,3210.8,0.1]
[1736877393546,0.9446,3210.9,3210.8,0.1]
[1736877394611,1.4946,3210.9,3210.8,0.1]
[1736877394941,4.60899,3210.9,3210.8,0.1]
[1736877397048,1.4946,3210.9,3210.8,0.1]
[1736877397348,0.7516,3211.3,3210.8,0.1]
[1736877397531,0.193,3211.2,3210.8,0.1]
[1736877398537,3.55,3211.1,3210.8,0.1]
[1736877398754,4.41599,3210.9,3210.8,0.1]
[1736877402549,1.3016,3210.9,3210.8,0.1]
[1736877403523,0.743,3211.0,3210.8,0.1]
[1736877404728,0.193,3211.1,3210.8,0.1]
[1736877405347,0.743,3211.1,3210.8,0.1]
[1736877405548,0.193,3211.0,3210.8,0.1]
[1736877406544,0.55,3210.9,3210.8,0.1]
[1736877407415,0.193,3211.0,3210.8,0.1]
[1736877408647,0.55,3211.1,3210.8,0.1]
[1736877409335,0.193,3211.2,3210.8,0.1]
[1736877409737,0.55,3211.6,3210.8,0.1]
[1736877409921,0.193,3211.4,3210.8,0.1]
[1736877410125,0.193,3211.4,3210.8,0.503377]
[1736877411761,0.193,3211.4,3210.8,3.617857]
[1736877411972,0.193,3211.4,3210.8,0.503377]
[1736877412171,0.193,3211.4,3210.8,0.1]
[1736877412730,0.7671,3212.0,3211.0,0.8208]
[1736877413047,3.56346109,3212.6,3211.6,3.93444]
[1736877413048,0.9601,3212.5,3211.6,3.93444]
[1736877413373,0.9601,3212.5,3211.6,3.93446]
[1736877413573,0.55,3212.4,3211.6,3.93446]
[1736877413870,0.55,3212.4,3211.7,0.68813047]
[1736877414044,4.07298,3212.5,3211.7,0.68813047]
[1736877414235,3.03891562,3212.4,3211.7,0.68813047]
[1736877414435,6.15192562,3212.4,3211.6,0.8208]
[1736877414635,0.55,3212.0,3211.6,0.8208]
[1736877414944,0.193,3212.1,3211.5,3.1138]
[1736877415279,0.193,3212.1,3211.6,0.8208]
[1736877417268,0.55,3212.0,3211.6,0.8208]
[1736877420356,0.193,3212.1,3211.2,0.8208]
[1736877420357,0.55,3211.8,3211.2,0.8208]
[1736877422681,0.193,3212.1,3211.2,0.8208]
[1736877422982,0.193,3212.3,3211.8,0.7938]
[1736877423149,0.55,3212.3,3211.8,0.7938]
[1736877423350,0.0389165,3212.8,3211.8,1.184549]
[1736877423654,0.193,3212.7,3212.1,3.90698]
[1736877424287,0.754,3213.3,3212.3,2.94684472]
[1736877424453,0.193,3213.4,3212.7,3.90643]
[1736877424646,0.754,3213.9,3213.0,3.11235]
[1736877424982,0.947,3213.9,3213.1,0.7938]
[1736877425346,0.947,3213.9,3213.1,3.90602]
[1736877425541,0.55,3213.8,3213.1,0.7938]
[1736877425739,0.947,3213.9,3213.1,3.90605]
[1736877425944,0.947,3213.9,3213.1,0.7938]
[1736877426349,0.754,3213.9,3213.1,0.7938]
[1736877426692,0.55,3213.6,3212.8,0.7938]
[1736877426882,0.193,3213.8,3212.9,2.94684472]
[1736877427070,2.245,3214.2,3213.3,3.11205]
[1736877427277,0.55,3213.9,3213.3,3.11205]
[1736877427960,0.55,3213.9,3213.1,3.11223]
[1736877428169,0.55,3213.9,3213.2,0.390603]
[1736877428463,0.55,3214.0,3213.2,0.390603]
[1736877429748,0.55,3214.0,3213.3,3.11204]
[1736877431152,0.55,3214.0,3213.2,0.390603]
[1736877431350,0.55,3214.0,3213.2,3.11214]
[1736877431658,0.03889503,3213.9,3213.0,0.7938]
[1736877431863,3.66143,3214.0,3213.0,0.7938]
[1736877432058,3.66143,3214.0,3213.0,3.90612]
[1736877432285,0.55,3214.0,3213.2,3.11216]
[1736877432483,0.55,3214.0,3213.2,3.502756]
[1736877432786,0.7675,3213.7,3213.0,0.7938]
[1736877432990,0.55,3213.6,3213.0,0.7938]
[1736877433191,0.55,3213.4,3212.6,3.87531]
[1736877433491,0.55,3213.6,3212.8,3.11253]
[1736877434454,0.55,3213.6,3212.8,2.94684472]
[1736877434701,3.7675,3214.1,3213.2,0.7626]
[1736877434862,0.192,3214.0,3213.3,3.11201]
[1736877435055,0.192,3214.0,3213.2,0.7626]
[1736877435392,0.55,3213.9,3213.2,0.7626]
[1736877437195,0.55,3213.9,3213.2,3.87475]
[1736877437502,0.55,3213.9,3213.3,0.387475]
[1736877439416,3.85339,3214.0,3213.3,0.387475]
[1736877439603,3.85339,3214.0,3213.2,0.7626]
[1736877439783,0.742,3214.0,3213.2,3.87476]
[1736877440182,3.85341,3214.0,3213.2,0.7626]
[1736877442092,3.89230685,3214.0,3213.2,0.7626]
[1736877442272,0.55,3213.8,3213.2,0.7626]
[1736877443185,0.55,3213.6,3212.9,0.29468447]
[1736877443401,0.55,3213.6,3212.9,3.40710447]
[1736877443902,0.55,3213.6,3212.9,0.29468447]
[1736877444505,0.55,3213.6,3213.0,3.11233]
[1736877445099,0.55,3213.6,3213.1,3.11225]
[1736877445283,0.7576,3213.7,3213.2,0.311225]
[1736877445889,0.7576,3213.7,3212.9,0.29468447]
[1736877446069,0.7576,3213.7,3213.1,3.11224]
[1736877446269,0.55,3213.6,3212.9,0.29468447]
[1736877446569,0.55,3213.6,3212.9,3.40708447]
[1736877446815,0.55,3213.6,3213.0,0.34070845]
[1736877447822,0.7576,3213.9,3213.2,3.87889]
[1736877448053,0.55,3213.8,3213.2,0.7668]
[1736877448250,0.55,3213.8,3213.3,3.11206]
[1736877448608,0.7576,3213.9,3213.4,3.11196]
[1736877451054,0.7576,3213.9,3213.2,3.87887]
[1736877451265,0.7576,3213.9,3213.3,3.499907]
[1736877451408,0.55,3213.8,3212.9,1.06148447]
[1736877451805,0.55,3213.8,3212.9,0.7668]
[1736877451960,0.55,3213.8,3213.1,3.1122]
[1736877453411,0.55,3213.8,3213.2,3.11209]
[1736877455459,0.58889717,3213.8,3213.3,0.23237276]
[1736877455665,0.55,3213.8,3213.3,0.52284124]
[1736877457181,0.55,3213.8,3213.2,3.11215]
[1736877458379,0.55,3213.8,3213.2,0.311215]
[1736877458552,0.55,3213.8,3213.2,3.11208]
[1736877460076,0.55,3213.8,3213.3,0.29048879]
[1736877461668,0.55,3213.8,3213.2,3.11208]
[1736877464283,0.55,3213.8,3212.9,0.7668]
[1736877464489,0.55,3213.4,3212.8,3.11254]
[1736877464672,0.55,3213.4,3212.8,4.18385246]
[1736877464875,0.55,3213.4,3213.0,0.29052856]
[1736877465671,0.7576,3213.5,3213.0,0.29052856]
[1736877465894,0.7576,3213.9,3213.1,0.7668]
[1736877466086,0.55,3213.8,3213.2,3.11214]
[1736877466244,0.55,3213.8,3213.2,3.52908686]
[1736877466446,0.55,3213.8,3213.2,0.70747542]
[1736877466645,0.55,3213.8,3213.3,3.11205]
[1736877466880,0.55,3213.8,3213.3,3.3444528]
[1736877467222,0.7576,3213.9,3213.3,3.3444528]
[1736877468288,0.7576,3213.9,3213.3,3.11205]
[1736877470580,0.7576,3213.9,3213.3,6.32623208]
[1736877470785,0.7576,3213.9,3213.4,0.63262321]
[1736877472934,0.55,3213.8,3213.3,3.21418208]
[1736877473505,0.55,3213.8,3213.1,6.32642208]
[1736877474287,0.55,3213.8,3213.2,3.21418208]
[1736877474733,0.55,3213.8,3213.1,6.32642208]
[1736877474934,0.55,3213.8,3213.1,3.21418208]
[1736877475107,0.55,3213.8,3213.2,3.43355821]
[1736877475292,0.55,3213.8,3213.2,6.64774029]
[1736877477924,0.7576,3213.9,3213.4,3.11195]
[1736877478946,0.7576,3213.9,3213.5,3.11186]
[1736877479292,0.75385269,3213.9,3213.5,3.11186]
[1736877479505,0.75385269,3213.9,3213.6,0.311186]
[1736877480414,2.94684472,3215.0,3213.6,0.311186]
[1736877480619,6.67887703,3215.6,3214.2,3.11116]
[1736877480853,3.10963,3215.9,3214.4,2.94684472]
[1736877480854,3.11001,3215.5,3214.4,2.94684472]
[1736877481005,3.11001,3215.5,3214.6,3.11075]
[1736877481205,3.11001,3215.5,3214.6,3.71650947]
[1736877481519,3.11001,3215.5,3214.5,3.21418208]
[1736877481520,3.11024,3215.2,3214.5,3.21418208]
[1736877481704,0.55,3215.1,3214.3,3.11108]
[1736877482143,0.192,3215.3,3214.4,2.94684472]
[1736877482378,0.192,3215.6,3214.9,3.11051]
[1736877482639,0.825,3215.7,3214.7,2.94684472]
[1736877482842,0.825,3215.7,3214.8,0.29468447]
[1736877483046,0.825,3215.7,3214.8,3.40525447]
[1736877483778,0.825,3215.7,3214.8,0.29468447]
[1736877483987,0.55,3215.6,3214.9,3.11051]
[1736877484296,0.825,3215.7,3214.9,3.11051]
[1736877484443,0.55,3215.6,3215.0,0.34051945]
[1736877484643,0.55,3215.6,3214.0,12.73845074]
[1736877484644,0.55,3215.4,3214.0,12.73845074]
[1736877484840,0.825,3215.5,3214.0,12.73845074]
[1736877484841,0.825,3215.0,3214.0,3.86845074]
[1736877485074,0.55,3214.9,3214.2,3.11116]
[1736877486012,0.55,3214.9,3214.0,0.63552636]
[1736877486223,0.825,3215.0,3214.4,3.111]
[1736877486396,0.825,3215.0,3214.3,0.778]
[1736877486397,0.825,3215.3,3214.5,2.94684472]
[1736877486571,0.55,3215.2,3214.6,3.11073]
[1736877489016,0.55,3215.2,3214.7,3.1107]
[1736877489316,0.825,3215.3,3214.5,6.05771472]
[1736877489479,1.017,3215.6,3215.0,3.1104]
[1736877490114,0.825,3215.6,3215.0,3.1104]
[1736877490713,0.825,3215.6,3215.1,3.1103]
[1736877491123,0.825,3215.6,3215.1,6.05714472]
[1736877491272,0.825,3215.6,3215.2,0.60571447]
[1736877494224,0.825,3216.1,3215.3,6.05690472]
[1736877494401,3.59219167,3216.8,3215.2,0.60571447]
[1736877494581,0.825,3217.2,3216.6,2.94684472]
[1736877494990,0.825,3217.2,3216.4,0.778]
[1736877495499,0.825,3217.2,3216.3,6.05595472]
[1736877495500,0.55,3217.1,3216.1,3.88735]
[1736877495736,3.10829,3217.2,3216.1,3.10935]
[1736877495880,0.85405623,3217.1,3215.9,0.62782755]
[1736877496084,0.55,3217.0,3216.0,3.54500723]